{"text_format":"3","workbook":"xlsx","n_sheets":5,"sheets":["Inizio","Settimana 1","Settimana 2","Settimana 3","Settimana 4"],"not_rendered":{"charts":32,"external_links":4,"defined_names":4},"read":"whole","date_system":"1900"}

{"sheet":"Inizio","index":0,"n_rows":13,"n_cols":2,"rows_kept":13}
[null,"INFORMAZIONI SUL MODELLO"]
[null,"Usare questo modello per eseguire una verifica giornaliera dell'elenco di controllo."]
[null,"Prepara una squadra con un massimo di quattro giocatori."]
[null,"Digitare i nomi dei giocatori e decidere quali obiettivi si vuole raggiungere ogni giorno. Gli obiettivi devono essere qualcosa che è possibile raggiungere su una scala da 1 a 5. Ad esempio, se si mangia in modo salutare tutto il giorno, si ottiene 5 e se si aggiunge uno spuntino non salutare, si ottiene 4 e così via."]
[null,"Ogni persona lavorerà per raggiungere gli stessi obiettivi. Digitare gli obiettivi sotto il nome di ogni persona."]
[null,"Selezionare \"Condividi\" nell'angolo in alto a destra o premere ALT+ZS per condividere il documento con i membri del team."]
[null,"Ogni giorno, i giocatori accedono al documento condiviso e immettono il punteggio che ritengono di aver guadagnato."]
[null,"Alla fine della settimana, selezionare Settimana 2 e compilare di nuovo i nomi e gli obiettivi."]
[null,"Ripetere per il numero di settimane che si vuole che la sfida duri."]
[null,"I grafici ad anello per tutti i giocatori vengono aggiornati automaticamente in tutti i fogli settimanali."]
[null,"Nota:"]
[null,"Nella colonna A di tutti i fogli di lavoro sono disponibili altre istruzioni. Questo testo è stato nascosto intenzionalmente. Per rimuovere il testo, selezionare la colonna A, quindi scegliere ELIMINA. "]
[null,"Per altre informazioni sulle tabelle, premere MAIUSC, quindi F10 in una tabella, selezionare l'opzione TABELLA, quindi selezionare TESTO ALTERNATIVO."]

{"sheet":"Settimana 1","index":1,"n_rows":38,"n_cols":9,"rows_kept":38,"merged":[[0,1,0,9],[1,1,1,9],[6,1,6,9],[7,2,7,8]]}
[null,"SETTIMANA 1"]
[null,"VERIFICA GIORNALIERA DELL’ELENCO DI CONTROLLO"]
[null,null,{"$f":"MIN(1,1-C4)","v":{"v":0.0971428571428572,"d":"10%"}},null,{"$f":"MIN(1,1-E4)","v":{"v":0.23428571428571432,"d":"23%"}},null,{"$f":"MIN(1,1-G4)","v":{"v":0.23428571428571432,"d":"23%"}},null,{"$f":"MIN(1,1-I4)","v":{"v":0.22285714285714286,"d":"22%"}}]
[null,null,{"$f":"SUM('[1]Settimana 1'!$B$10:$I$14)/(ROWS('[1]Settimana 1'!$B$10:$I$14)*7*5)","v":{"v":0.9028571428571428,"d":"90%"}},null,{"$f":"SUM('[1]Settimana 1'!$B$18:$I$22)/(ROWS('[1]Settimana 1'!$B$10:$I$14)*7*5)","v":{"v":0.7657142857142857,"d":"77%"}},null,{"$f":"SUM('[1]Settimana 1'!$B$26:$I$30)/(ROWS('[1]Settimana 1'!$B$10:$I$14)*7*5)","v":{"v":0.7657142857142857,"d":"77%"}},null,{"$f":"SUM('[1]Settimana 1'!$B$34:$I$38)/(ROWS('[1]Settimana 1'!$B$10:$I$14)*7*5)","v":{"v":0.7771428571428571,"d":"78%"}}]
[null,null,"PUPETTA",null,"DIEGO",null,{"$f":"Name3","v":"MATTIA"},null,{"$f":"Name4","v":"GIORGIA"}]
[]
[null,"Immettere un punteggio compreso tra 0 e 5 per ogni elemento dell'elenco di controllo.    "]
[null,null,"I grafici rappresentano il conteggio totale accumulato e aggiornato per ogni membro del team."]
[null,"PUPETTA","Domenica","Lunedì","Martedì","Mercoledì ","Giovedì ","Venerdì ","Sabato"]
[null,"Alimentazione",5,4,5,4,5,5,5]
[null,"Esercizio fisico",4,3,3,5,5,5,5]
[null,"Meno TV",4,4,3,5,5,5,5]
[null,"Sonno",4,5,5,5,5,5,5]
[null,"Atti di generosità",4,3,3,5,5,5,5]
[]
[]
[null,"DIEGO","Domenica","Lunedì","Martedì","Mercoledì ","Giovedì ","Venerdì ","Sabato"]
[null,"Alimentazione",5,5,5,5,1,5,2]
[null,"Esercizio fisico",3,5,4,3,4,5,3]
[null,"Meno TV",4,5,5,4,3,3,3]
[null,"Sonno",4,4,4,3,4,5,4]
[null,"Atti di generosità",3,4,3,4,3,4,3]
[]
[]
[null,"MATTIA","Domenica","Lunedì","Martedì","Mercoledì ","Giovedì ","Venerdì ","Sabato"]
[null,"Alimentazione",4,3,3,4,5,4,4]
[null,"Esercizio fisico",3,5,5,5,5,5,3]
[null,"Meno TV",2,4,3,3,3,4,4]
[null,"Sonno",4,5,5,5,5,4,5]
[null,"Atti di generosità",4,3,2,2,3,2,4]
[]
[]
[null,"GIORGIA","Domenica","Lunedì","Martedì","Mercoledì ","Giovedì ","Venerdì ","Sabato"]
[null,"Alimentazione",5,5,5,5,5,5,5]
[null,"Esercizio fisico",2,3,4,4,3,4,4]
[null,"Meno TV",3,4,5,5,4,2,2]
[null,"Sonno",4,4,4,3,5,4,4]
[null,"Atti di generosità",4,3,4,3,4,3,3]

{"sheet":"Settimana 2","index":2,"n_rows":38,"n_cols":9,"rows_kept":38,"merged":[[0,1,0,9],[1,1,1,9],[6,1,6,9],[7,2,7,8]]}
[null,"SETTIMANA 2"]
[null,"VERIFICA GIORNALIERA DELL’ELENCO DI CONTROLLO"]
[null,null,{"$f":"MIN(1,1-C4)","v":{"v":0.17714285714285716,"d":"18%"}},null,{"$f":"MIN(1,1-E4)","v":{"v":0.29714285714285715,"d":"30%"}},null,{"$f":"MIN(1,1-G4)","v":{"v":0.34857142857142853,"d":"35%"}},null,{"$f":"MIN(1,1-I4)","v":{"v":0.3828571428571429,"d":"38%"}}]
[null,null,{"$f":"SUM('[2]Settimana 2'!$B$10:$I$14)/(ROWS('[2]Settimana 2'!$B$10:$I$14)*7*5)","v":{"v":0.8228571428571428,"d":"82%"}},null,{"$f":"SUM('[2]Settimana 2'!$B$18:$I$22)/(ROWS('[2]Settimana 2'!$B$10:$I$14)*7*5)","v":{"v":0.7028571428571428,"d":"70%"}},null,{"$f":"SUM('[2]Settimana 2'!$B$26:$I$30)/(ROWS('[2]Settimana 2'!$B$10:$I$14)*7*5)","v":{"v":0.6514285714285715,"d":"65%"}},null,{"$f":"SUM('[2]Settimana 2'!$B$34:$I$38)/(ROWS('[2]Settimana 2'!$B$10:$I$14)*7*5)","v":{"v":0.6171428571428571,"d":"62%"}}]
[null,null,"PUPETTA",null,"DIEGO",null,{"$f":"Person3Week2[[#Headers],[MATTIA]]","v":"MATTIA"},null,{"$f":"Person4Week2[[#Headers],[GIORGIA]]","v":"GIORGIA"}]
[]
[null,"Immettere un punteggio compreso tra 0 e 5 per ogni elemento dell'elenco di controllo.    "]
[null,null,"I grafici rappresentano il conteggio totale accumulato e aggiornato per ogni membro del team."]
[null,"PUPETTA","Domenica","Lunedì","Martedì","Mercoledì ","Giovedì ","Venerdì ","Sabato"]
[null,"Alimentazione",1,3,4,5,3,2,1]
[null,"Esercizio fisico",4,3,3,5,5,5,5]
[null,"Meno TV",4,4,3,5,5,5,5]
[null,"Sonno",4,5,5,5,5,5,5]
[null,"Atti di generosità",4,3,3,5,5,5,5]
[]
[]
[null,"DIEGO","Domenica","Lunedì","Martedì","Mercoledì ","Giovedì ","Venerdì ","Sabato"]
[null,"Alimentazione",2,3,2,3,2,3,2]
[null,"Esercizio fisico",3,5,4,3,4,5,3]
[null,"Meno TV",4,5,5,4,3,3,3]
[null,"Sonno",4,4,4,3,4,5,4]
[null,"Atti di generosità",3,4,3,4,3,4,3]
[]
[]
[null,"MATTIA","Domenica","Lunedì","Martedì","Mercoledì ","Giovedì ","Venerdì ","Sabato"]
[null,"Alimentazione",1,1,1,1,1,1,1]
[null,"Esercizio fisico",3,5,5,5,5,5,3]
[null,"Meno TV",2,4,3,3,3,4,4]
[null,"Sonno",4,5,5,5,5,4,5]
[null,"Atti di generosità",4,3,2,2,3,2,4]
[]
[]
[null,"GIORGIA","Domenica","Lunedì","Martedì","Mercoledì ","Giovedì ","Venerdì ","Sabato"]
[null,"Alimentazione",1,1,1,1,1,1,1]
[null,"Esercizio fisico",2,3,4,4,3,4,4]
[null,"Meno TV",3,4,5,5,4,2,2]
[null,"Sonno",4,4,4,3,5,4,4]
[null,"Atti di generosità",4,3,4,3,4,3,3]

{"sheet":"Settimana 3","index":3,"n_rows":38,"n_cols":9,"rows_kept":38,"merged":[[0,1,0,9],[1,1,1,9],[6,1,6,9],[7,2,7,8]]}
[null,"SETTIMANA 3"]
[null,"VERIFICA GIORNALIERA DELL’ELENCO DI CONTROLLO"]
[null,null,{"$f":"MIN(1,1-C4)","v":0.1885714285714286},null,{"$f":"MIN(1,1-E4)","v":0.22285714285714286},null,{"$f":"MIN(1,1-G4)","v":0.19428571428571428},null,{"$f":"MIN(1,1-I4)","v":0.34857142857142853}]
[null,null,{"$f":"SUM('[3]Settimana 3'!$B$10:$I$14)/(ROWS('[3]Settimana 3'!$B$10:$I$14)*7*5)","v":0.8114285714285714},null,{"$f":"SUM('[3]Settimana 3'!$B$18:$I$22)/(ROWS('[3]Settimana 3'!$B$10:$I$14)*7*5)","v":0.7771428571428571},null,{"$f":"SUM('[3]Settimana 3'!$B$26:$I$30)/(ROWS('[3]Settimana 3'!$B$10:$I$14)*7*5)","v":0.8057142857142857},null,{"$f":"SUM('[3]Settimana 3'!$B$34:$I$38)/(ROWS('[3]Settimana 3'!$B$10:$I$14)*7*5)","v":0.6514285714285715}]
[null,null,"PUPETTA",null,"DIEGO",null,{"$f":"Person3Week3[[#Headers],[MATTIA]]","v":"MATTIA"},null,{"$f":"Person4Week3[[#Headers],[GIORGIA]]","v":"GIORGIA"}]
[]
[null,"Immettere un punteggio compreso tra 0 e 5 per ogni elemento dell'elenco di controllo.    "]
[null,null,"I grafici rappresentano il conteggio totale accumulato e aggiornato per ogni membro del team."]
[null,"PUPETTA","Domenica","Lunedì","Martedì","Mercoledì ","Giovedì ","Venerdì ","Sabato"]
[null,"Alimentazione",5,5,5,5,5,5,5]
[null,"Esercizio fisico",3,5,5,5,5,5,3]
[null,"Meno TV",2,4,3,3,3,4,4]
[null,"Sonno",4,5,5,5,5,4,5]
[null,"Atti di generosità",4,3,2,2,3,2,4]
[]
[]
[null,"DIEGO","Domenica","Lunedì","Martedì","Mercoledì ","Giovedì ","Venerdì ","Sabato"]
[null,"Alimentazione",5,5,5,5,5,5,5]
[null,"Esercizio fisico",2,3,4,4,3,4,4]
[null,"Meno TV",3,4,5,5,4,2,2]
[null,"Sonno",4,4,4,3,5,4,4]
[null,"Atti di generosità",4,3,4,3,4,3,3]
[]
[]
[null,"MATTIA","Domenica","Lunedì","Martedì","Mercoledì ","Giovedì ","Venerdì ","Sabato"]
[null,"Alimentazione",5,5,5,5,5,5,5]
[null,"Esercizio fisico",3,5,4,3,4,5,3]
[null,"Meno TV",4,5,5,4,3,3,3]
[null,"Sonno",4,4,4,3,4,5,4]
[null,"Atti di generosità",3,4,3,4,3,4,3]
[]
[]
[null,"GIORGIA","Domenica","Lunedì","Martedì","Mercoledì ","Giovedì ","Venerdì ","Sabato"]
[null,"Alimentazione",1,1,1,1,1,1,1]
[null,"Esercizio fisico",3,5,5,5,5,5,3]
[null,"Meno TV",2,4,3,3,3,4,4]
[null,"Sonno",4,5,5,5,5,4,5]
[null,"Atti di generosità",4,3,2,2,3,2,4]

{"sheet":"Settimana 4","index":4,"n_rows":38,"n_cols":9,"rows_kept":38,"merged":[[0,1,0,9],[1,1,1,9],[6,1,6,9],[7,2,7,8]]}
[null,"SETTIMANA 4"]
[null,"VERIFICA GIORNALIERA DELL’ELENCO DI CONTROLLO"]
[null,null,{"$f":"MIN(1,1-C4)","v":{"v":0.41714285714285715,"d":"42%"}},null,{"$f":"MIN(1,1-E4)","v":{"v":0.3828571428571429,"d":"38%"}},null,{"$f":"MIN(1,1-G4)","v":{"v":0.5485714285714286,"d":"55%"}},null,{"$f":"MIN(1,1-I4)","v":{"v":0.36,"d":"36%"}}]
[null,null,{"$f":"SUM('[4]Settimana 4'!$B$10:$I$14)/(ROWS('[4]Settimana 4'!$B$10:$I$14)*7*5)","v":{"v":0.5828571428571429,"d":"58%"}},null,{"$f":"SUM('[4]Settimana 4'!$B$18:$I$22)/(ROWS('[4]Settimana 4'!$B$10:$I$14)*7*5)","v":{"v":0.6171428571428571,"d":"62%"}},null,{"$f":"SUM('[4]Settimana 4'!$B$26:$I$30)/(ROWS('[4]Settimana 4'!$B$10:$I$14)*7*5)","v":{"v":0.4514285714285714,"d":"45%"}},null,{"$f":"SUM('[4]Settimana 4'!$B$34:$I$38)/(ROWS('[4]Settimana 4'!$B$10:$I$14)*7*5)","v":{"v":0.64,"d":"64%"}}]
[null,null,"PUPETTA",null,"DIEGO",null,{"$f":"Person3Week4[[#Headers],[MATTIA]]","v":"MATTIA"},null,{"$f":"Person4Week4[[#Headers],[GIORGIA]]","v":"GIORGIA"}]
[]
[null,"Immettere un punteggio compreso tra 0 e 5 per ogni elemento dell'elenco di controllo.    "]
[null,null,"I grafici rappresentano il conteggio totale accumulato e aggiornato per ogni membro del team."]
[null,"PUPETTA","Domenica","Lunedì","Martedì","Mercoledì ","Giovedì ","Venerdì ","Sabato"]
[null,"Alimentazione",2,2,2,2,2,2,2]
[null,"Esercizio fisico",3,2,5,3,4,2,4]
[null,"Meno TV",3,4,4,3,3,2,1]
[null,"Sonno",3,4,5,4,3,2,1]
[null,"Atti di generosità",3,2,5,3,4,2,4]
[]
[]
[null,"DIEGO","Domenica","Lunedì","Martedì","Mercoledì ","Giovedì ","Venerdì ","Sabato"]
[null,"Alimentazione",4,4,4,4,4,4,4]
[null,"Esercizio fisico",3,4,4,3,3,2,1]
[null,"Meno TV",2,2,2,2,2,2,2]
[null,"Sonno",3,2,5,3,4,2,4]
[null,"Atti di generosità",3,2,5,3,4,2,4]
[]
[]
[null,"MATTIA","Domenica","Lunedì","Martedì","Mercoledì ","Giovedì ","Venerdì ","Sabato"]
[null,"Alimentazione",3,3,3,3,3,4,3]
[null,"Esercizio fisico",3,4,4,3,3,2,1]
[null,"Meno TV",2,2,2,2,2,2,2]
[null,"Sonno",3,2,5,3,4,2,4]
[null,"Atti di generosità"]
[]
[]
[null,"GIORGIA","Domenica","Lunedì","Martedì","Mercoledì ","Giovedì ","Venerdì ","Sabato"]
[null,"Alimentazione",5,5,5,5,5,5,5]
[null,"Esercizio fisico",3,4,4,3,3,2,1]
[null,"Meno TV",2,2,2,2,2,2,2]
[null,"Sonno",3,2,5,3,4,2,4]
[null,"Atti di generosità",3,4,4,3,3,2,1]